Cogmind - Beta 16 --- EXPLORER MODE // 2025.12.16 @ 15:21:31 Player: K.K.Y. Result: Destroyed by S-10 Pest with Light Assault Rifle Performance ------------- Evolutions (0) 0 Regions Visited (3) 600 Robots Destroyed (26) 130 Value Destroyed (484) 484 Prototype IDs (0) 0 Alien Tech Used (0) 0 Bonus (270) 270 TOTAL SCORE: 1484 Bonus ------- Follower Combat Kills 270 Cogmind --------- Core Integrity 0/250 Matter 300/300 Energy 160/160 System Corruption 0% Temperature Cool (0) Movement Treading (160) Location -10/Subcaves Parts ------- > --- POWER (1) -------- Light Nuclear Core > --- PROPULSION (2) --- Light Treads Light Treads > --- UTILITY (3) ------ Small Storage Unit Structural Scanner Core Shielding > --- WEAPON (2) ------- Makeshift Hammer Makeshift Sword > --- INVENTORY (8) ---- Spiked Treads Makeshift Flight Unit Light Humpback Improved Terrain Scanner Barrage Gun Mining Laser Multitool Peak State ------------ > --- POWER ------------ Light Nuclear Core > --- PROPULSION ------- Light Treads Light Treads > --- UTILITY ---------- Small Storage Unit Structural Scanner Core Shielding > --- WEAPON ----------- Makeshift Hammer Makeshift Sword > --- INVENTORY -------- Light Treads Light Treads Spiked Treads Improved Terrain Scanner Medium Laser Battle Cannon Mining Laser Multitool [Rating: 17] Favorites ----------- Power Ion Engine Engine Ion Engine Power Core Light Nuclear Core Propulsion Light Treads Treads Light Treads Utility Core Shielding Device Structural Scanner Storage Small Storage Unit Protection Core Shielding Weapon Medium Laser Energy Gun Medium Laser Ballistic Gun Assault Rifle Impact Weapon Makeshift Hammer Slashing Weapon Makeshift Sword Build | -11 -10 -10 -10 ------- Run | Yrd Mat Min Sub Slots Evolved 1 | . 1 . . Power . | . . . . Propulsion . | . . . . Utility 1 | . 1 . . Weapon . | . . . . Parts Attached 19 | 6 6 4 3 Power 2 | 1 . . 1 Engine 1 | 1 . . . Core 1 | . . . 1 Reactor . | . . . . Propulsion 5 | 2 1 2 . Treads 5 | 2 1 2 . Leg . | . . . . Wheel . | . . . . Hover . | . . . . Flight . | . . . . Utility 4 | 2 1 1 . Device 1 | . 1 . . Storage 1 | . . 1 . Processor . | . . . . Hackware . | . . . . Protection 2 | 2 . . . Artifact . | . . . . Weapon 8 | 1 4 1 2 Energy Gun 5 | . 4 1 . Energy Cannon . | . . . . Ballistic Gun 1 | 1 . . . Ballistic Cannon . | . . . . Launcher . | . . . . Special Weapon . | . . . . Impact Weapon 1 | . . . 1 Slashing Weapon 1 | . . . 1 Piercing Weapon . | . . . . Special Melee Weapon . | . . . . Unidentified Prototypes . | . . . . Parts Lost 1 | . . . 1 Power 1 | . . . 1 Propulsion . | . . . . Utility . | . . . . Weapon . | . . . . Highest Loss Streak 1 | . . . 1 To Critical Strikes . | . . . . Average Backups 5 | . 4 4 6 Power . | . . . . Propulsion 1 | . . . 1 Utility 1 | . 1 1 1 Weapon 2 | . 2 2 2 Tool/Special . | . . . . Unused Backups 11 | . . 1 10 Power 1 | . . 1 . Propulsion 4 | . . . 4 Utility 2 | . . . 2 Weapon 3 | . . . 3 Tool/Special 1 | . . . 1 Average Slot Usage (%) 96 | . 87 100 99 Engine 7 | . 12 12 3 Core 4 | . . . 8 Treads 23 | . 17 25 25 Device 11 | . 9 12 12 Storage 6 | . . 2 12 Protection 17 | . 25 22 12 Energy Gun 14 | . 20 25 6 Impact Weapon 5 | . . . 11 Slashing Weapon 2 | . . . 5 Peak Build Rating 17 | 6 8 9 17 Average Rating 10 | 5 7 8 14 On Entrance 5 | . 6 8 8 Avg Prop Armor Cover (%) . | . . . . Naked Turns . | . . . . Heaviest Build 17 | 11 14 16 17 Greatest Support 40 | 40 40 40 40 Greatest Overweight (x) 4 | . 4 . . Average Overweight (x) . | . . . . Largest Inventory Capacity 8 | 5 5 8 8 Average Capacity 6 | 5 5 5 8 Most Carried 8 | 5 5 6 8 Average Carried 5 | 1 4 4 6 Final Capacity 8 | 5 5 8 8 Final Carried 8 | 2 4 4 8 Class Distribution -------------------- 100% | Hacker-Mutant Dominant Class ---------------- Hacker-Mutant | -10/Materials Hacker-Mutant | -10/Mines Hacker-Mutant | -10/Subcaves Resources | -11 -10 -10 -10 ----------- Run | Yrd Mat Min Sub Matter Collected 623 | 293 151 119 60 Remotely . | . . . . Salvage Created 985 | 131 548 191 115 Parts 44 | 4 24 9 7 Haulers Intercepted 2 | . 2 . . Recyclers Shooed 3 | . 2 1 . Parts Field Recycled . | . . . . Retrieved Matter . | . . . . Parts Self-Destructed . | . . . . Prevented . | . . . . Parts Restored . | . . . . Kills | -11 -10 -10 -10 ------- Run | Yrd Mat Min Sub Combat Hostiles Destroyed 14 | . 8 2 4 Melee 3 | . . . 3 Guns 8 | . 6 2 . Classes Destroyed 9 | 2 5 1 1 Worker 1 | . . 1 . Builder 1 | . 1 . . Tunneler 3 | 2 1 . . Hauler 2 | . 2 . . Recycler 4 | 1 2 1 . Watcher 1 | . 1 . . Swarmer 5 | . 4 . 1 Grunt 6 | . 4 2 . Subdweller 3 | . . . 3 Best Kill Streak 4 | 2 4 2 1 Combat Bots Only 3 | . 3 2 1 Max Kills in Single Turn 1 | 1 1 1 1 Gunslinging . | . . . . Exploded . | . . . . Melee 1 | . . . 1 Uniques/NPCs Destroyed . | . . . . Combat | -11 -10 -10 -10 -------- Run | Yrd Mat Min Sub Hostile Shots Fired 138 | . 55 11 72 Missed 32 | . 9 3 20 Hits 106 | . 46 8 52 Projectile 106 | . 46 8 52 Critical Strikes 5 | . 2 . 3 Actively Blocked 2 | . 1 . 1 Damage Taken 1128 | . 392 76 660 Core 253 | . 37 24 192 Absorbed by Shields . | . . . . Redirected to Shielding 49 | . 4 5 40 Ignored by Resistances 691 | . 244 45 402 Core Remaining (%) 100 | 100 . . . Volleys Fired 80 | 11 58 11 . Largest 2 | 1 2 2 . Hottest 100 | 20 100 100 . Shots Fired 122 | 11 89 22 . Gun 122 | 11 89 22 . Cannon . | . . . . Launcher . | . . . . Special . | . . . . Kinetic 38 | 11 27 . . Thermal 84 | . 62 22 . Explosive . | . . . . Electromagnetic . | . . . . Robot Hit Streak 38 | 7 38 21 . Robot Miss Streak 2 | 1 2 1 . Penetration Max . | . . . . Secondary Targets 1 | . 1 . . Max Gunslinging Chain 1 | . 1 . . Shots Hit Robots 130 | 10 79 19 22 Core Hits 40 | 4 24 9 3 Critical Kills . | . . . . Critical Parts Destroyed 2 | . . . 2 Critical Strikes 4 | . . 2 2 Burn 2 | . . 2 . Smash 2 | . . . 2 Melee Attacks 86 | . . . 86 Impact 68 | . . . 68 Slashing 18 | . . . 18 Piercing . | . . . . Sneak Attacks . | . . . . Combat Hostiles . | . . . . Follow-up Attacks . | . . . . Damage Inflicted 2227 | 123 1003 239 862 Guns 1365 | 123 1003 239 . Cannons . | . . . . Explosions . | . . . . Melee 862 | . . . 862 Ramming . | . . . . Kinetic 459 | 123 336 . . Thermal 906 | . 667 239 . Explosive . | . . . . Electromagnetic . | . . . . Impact 434 | . . . 434 Slashing 428 | . . . 428 Piercing . | . . . . Highest Corruption . | . . . . Average Corruption . | . . . . Corruption Purged . | . . . . Corruption Blocked . | . . . . Overload Shots . | . . . . Overflow Damage 139 | . . . 139 Projectiles . | . . . . Explosions . | . . . . Melee 139 | . . . 139 Knockbacks 5 | . . . 5 Impact 5 | . . . 5 Kinetic . | . . . . Secondary . | . . . . Self-Inflicted Damage . | . . . . Shots . | . . . . Rammed . | . . . . Targets Rammed . | . . . . Kicked . | . . . . Crushed . | . . . . Highest Temperature 410 | . 410 396 161 Average Temperature 146 | . 149 146 90 Received Heat Transfer 919 | . 357 69 493 Effects 11 | . 9 2 . Shutdowns 1 | . 1 . . Interference 7 | . 7 . . Matter Decay 1 | . . 1 . Short Circuit 2 | . 1 1 . Siege Activations . | . . . . Martial Activations . | . . . . Shielding Activations . | . . . . Robots Disrupted . | . . . . Combat Hostiles . | . . . . Robots Corrupted 1 | . . . 1 Combat Hostiles 1 | . . . 1 Parts Fried . | . . . . Impact Corruptions 4 | . . . 4 Robots Melted 2 | . 2 . . Combat Hostiles 2 | . 2 . . Parts Melted 3 | . 3 . . Heat Transferred 2812 | . 1961 851 . Parts Sabotaged . | . . . . Parts Stolen . | . . . . Parts Stripped . | . . . . Power Chain Reactions . | . . . . Alert | -11 -10 -10 -10 ------- Run | Yrd Mat Min Sub Maximum Alert Level . | . . . . Low Security (%) 100 | 100 100 100 . Level 1 . | . . . . Level 2 . | . . . . Level 3 . | . . . . Level 4 . | . . . . Level 5 . | . . . . High Security . | . . . . Max Security . | . . . . Peak Influence 67 | 10 67 36 . Initial . | . . . . Average 4 | . 8 1 . Influence Increases 400 | 15 244 61 80 Destroy 0b10 Robot/C 220 | . 160 40 20 Destroy 0b10 Robot/NC 60 | 15 35 10 . Destroy Leader 56 | . 46 10 . Allied During Kill 1 | . . 1 . Successful Hack 3 | . 3 . . Lose Combat Pursuer 60 | . . . 60 Influence Decreases 320 | 15 244 61 . Time Decay 320 | 15 244 61 . Squads Dispatched . | . . . . Investigation . | . . . . Extermination . | . . . . Reinforcement . | . . . . Assault . | . . . . Garrison . | . . . . Intercept . | . . . . Searches Triggered . | . . . . Construction Impeded . | . . . . Haulers Reinforced . | . . . . Active Scanning Responses . | . . . . Cargo Convoy Interrupts . | . . . . Stealth | -11 -10 -10 -10 --------- Run | Yrd Mat Min Sub Distress Signals 4 | . 4 . . Communications Jammed . | . . . . Distress Signals . | . . . . Times Spotted 44 | . 20 2 22 Peak Tracking Total 6 | . 4 2 6 Tactical Retreats 1 | . . . 1 Traps | -11 -10 -10 -10 ------- Run | Yrd Mat Min Sub Traps Triggered 6 | . 3 . 3 Indirectly . | . . . . Trap Hack Attempts . | . . . . Triggered . | . . . . Disarmed . | . . . . Reprogrammed . | . . . . Reused . | . . . . Traps Extracted . | . . . . Installed . | . . . . Triggered . | . . . . Machines | -11 -10 -10 -10 ---------- Run | Yrd Mat Min Sub Machines Disabled . | . . . . Max in Single Turn . | . . . . Machines Repaired . | . . . . Machines Dismantled . | . . . . Machines Sabotaged . | . . . . Overloaded Fab Kills . | . . . . Hacking | -11 -10 -10 -10 --------- Run | Yrd Mat Min Sub Machines Accessed 3 | . 1 . 2 Terminals 1 | . 1 . . Fabricators . | . . . . Repair Stations . | . . . . Recycling Units . | . . . . Scanalyzers . | . . . . Garrison Access . | . . . . Total Hacks 4 | . 1 . 3 Successful 4 | . 1 . 3 Failed . | . . . . Catastrophic . | . . . . Database Lockouts . | . . . . Manual 1 | . 1 . . Terminals 1 | . 1 . . Fabricators . | . . . . Repair Stations . | . . . . Recycling Units . | . . . . Scanalyzers . | . . . . Garrison Access . | . . . . Terminal Hacks 3 | . . . 3 Record 1 | . . . 1 Open Door 1 | . . . 1 Release Object 1 | . . . 1 Fabricator Hacks . | . . . . Repair Station Hacks . | . . . . Recycling Unit Hacks . | . . . . Scanalyzer . | . . . . Garrison Access Hacks . | . . . . Unauthorized Hacks 1 | . 1 . . Terminals 1 | . 1 . . Botnet 1 | . 1 . . Fabricators . | . . . . Repair Stations . | . . . . Recycling Units . | . . . . Scanalyzers . | . . . . Garrison Access . | . . . . Data Cores Recovered . | . . . . Used . | . . . . Hacking Detections . | . . . . Full Trace Events . | . . . . Feedback Events . | . . . . Feedback Blocked . | . . . . Robot Schematics Acquired . | . . . . Robots Built . | . . . . Authchips . | . . . . Time . | . . . . Total Robot Build Rating . | . . . . Part Schematics Acquired . | . . . . Parts Built . | . . . . Authchips . | . . . . Time . | . . . . Total Part Build Rating . | . . . . Part Studies Acquired . | . . . . Parts Repaired . | . . . . Time . | . . . . Parts Recycled . | . . . . Recycled Matter . | . . . . Retrieved Matter . | . . . . Retrieved Components . | . . . . Parts Scanalyzed . | . . . . Part Schematics Acquired . | . . . . Parts Damaged . | . . . . Bothacking | -11 -10 -10 -10 ------------ Run | Yrd Mat Min Sub Used RIF Installer . | . . . . Robots Hacked . | . . . . Non-combat . | . . . . Combat . | . . . . Robot Hacks Applied . | . . . . Relay Couplers Released . | . . . . Fabnet Peak Effective % . | . . . . Robots Rewired . | . . . . Allies Hacked . | . . . . Hacks Repelled . | . . . . Allies | -11 -10 -10 -10 -------- Run | Yrd Mat Min Sub Total Allies 5 | . . 5 . Largest Group 5 | . . 5 5 Highest-Rated Group 82 | . . 82 82 Highest-Rated Ally 31 | . . 31 31 Total Orders . | . . . . Ally Attacks 53 | . . 1 52 Total Damage 846 | . . 22 824 Kills 10 | . . . 10 Allies Corrupted . | . . . . Allies Melted . | . . . . Intel | -11 -10 -10 -10 ------- Run | Yrd Mat Min Sub Active Infowar (turns) 3670 | . 789 904 1977 Structural 3670 | . 789 904 1977 Robot Analysis Total . | . . . . Derelict Logs Recovered 2 | . . . 2 Drone Launches . | . . . . Drone Recoveries . | . . . . Exploration | -11 -10 -10 -10 ------------- Run | Yrd Mat Min Sub Turns Passed 4133 | 120 1132 904 1977 Spaces Moved 2174 | 61 492 517 1104 Core 21 | 20 1 . . Treads 2153 | 41 491 517 1104 Legs . | . . . . Wheels . | . . . . Hover . | . . . . Flight . | . . . . Fastest Speed 50 | 50 160 160 160 Average Speed 159 | 123 160 160 160 Slowest Speed 250 | 160 250 160 160 Overloaded Moves . | . . . . Propulsion Burnouts . | . . . . Robots Hopped . | . . . . Potential Cave-ins . | . . . . Cave-ins Triggered . | . . . . Exploration Rate (%) 64 | 5 81 99 71 Regions Visited 3 Branch Regions 2 Pre-discovered Areas 1 | . . 1 . Known Exits Taken 3 | 1 1 1 . Unknown Exits Taken . | . . . . Scrap Searched 10 | . . 1 9 Spaces Dug 10 | . . . 10 Terrain Destroyed 10 | . . . 10 Melee 10 | . . . 10 Projectile . | . . . . AOE . | . . . . Terrain Rammed . | . . . . Walls Destroyed . | . . . . Machines Disabled . | . . . . Actions | -11 -10 -10 -10 --------- Run | Yrd Mat Min Sub Total 2647 | 94 746 573 1234 Wait 242 | 10 174 33 25 Move 2171 | 60 491 516 1104 Hop . | . . . . Pick Up 29 | 7 8 4 10 Fast Attach 7 | 1 5 . 1 Attach 13 | 5 5 1 2 Detach 3 | . 1 1 1 Swap 4 | . 1 3 . Drop 14 | . 3 4 7 Fire 80 | 11 58 11 . Melee 84 | . . . 84 Ram . | . . . . Kick . | . . . . Crush . | . . . . Escape Stasis . | . . . . Rewire . | . . . . Trap . | . . . . Miscellaneous . | . . . . Route ------- -11/Scrapyard -10/Materials (discovered 5 exits: *Mat x3 / *Min x2) -10/Mines (discovered 4 exits: *Mat x2 / *Exi / *Sub) -10/Subcaves (discovered 2 exits: *Rec / [*Scr]) History --------- Turn | Location | Event 11 | -11/Scrapyard | Identified exit to Materials 11 | -11/Scrapyard | Discovered exit to Materials (range 14) 121 | -11/Scrapyard | Entered Materials 121 | -10/Materials | Evolved 1 slot: Utility x1 312 | -10/Materials | Build established: Hacker-Mutant 398 | -10/Materials | Identified exit to Mines 398 | -10/Materials | Discovered exit to Mines (range 15) 398 | -10/Materials | Discovered exit to Mines (range 4) 662 | -10/Materials | Identified exit to Materials 662 | -10/Materials | Discovered exit to Materials (range 12) 805 | -10/Materials | Discovered exit to Materials (range 11) 1162 | -10/Materials | Discovered exit to Materials (range 13) 1253 | -10/Materials | Entered Mines 1333 | -10/Mines | Discovered exit to Materials (range 3) 1455 | -10/Mines | Discovered exit to Materials (range 8) 1566 | -10/Mines | Deemed a non-threat by the Exiles lab entrance 1566 | -10/Mines | Identified exit to Exiles 1566 | -10/Mines | Discovered exit to Exiles (range 5) 1679 | -10/Mines | A weapon hastily lodged in a ceiling crevice suddenly fell to the ground 1769 | -10/Mines | Assisted by bots powering up and referring to "LRC-V3" 1881 | -10/Mines | Found a hidden stash of uninstalled traps 2006 | -10/Mines | Learned location of Storage (-8) 2129 | -10/Mines | Identified exit to Subcaves 2129 | -10/Mines | Discovered exit to Subcaves (range 5) 2157 | -10/Mines | Entered Subcaves 2157 | -10/Subcaves | Accompanied by 5 allies 2158 | -10/Subcaves | Approached by a straggling Scientist 2162 | -10/Subcaves | Led the pair of lost Derelicts to an unsafe place 2596 | -10/Subcaves | Disturbed a concealed Subdweller 2691 | -10/Subcaves | Ambushed by Subdwellers from Twisted Machinery 2855 | -10/Subcaves | Learned Materials garrison access intel 2902 | -10/Subcaves | A swath of the cavern ceiling suddenly collapsed 3474 | -10/Subcaves | Shifting Twisted Machinery released Scrap Shield 3666 | -10/Subcaves | Core integrity fell below 50% 3726 | -10/Subcaves | Lost 3 allies 3734 | -10/Subcaves | A swath of the cavern ceiling suddenly collapsed 3758 | -10/Subcaves | Core integrity fell below 20% 3810 | -10/Subcaves | Disturbed a concealed Subdweller 4122 | -10/Subcaves | Identified exit to Recycling 4122 | -10/Subcaves | Discovered exit to Recycling (range 12) 4134 | -10/Subcaves | Destroyed by S-10 Pest with Light Assault Rifle Last Messages --------------- 03828_ 8A-RGO(R) affixes Scrap Shield Fragment to Scrap Shield. 03837_ 8A-RGO(R) destroyed. 03839_ Searching scrap... 03839_ Found Barrage Gun. 03839_ Found 50 Matter. 03844_ Searching scrap... 03844_ Found Flamer. 03844_ Found Sub. Beam Cannon. 03844_ Found 69 Matter. 03846_ Searching scrap... 03846_ Found Sub. Optics. 03846_ Found Mak. Spear. 03846_ Found 42 Matter. 03879_ Dropped Med. Laser. 03880_ Acquired Barrage Gun. 03898_ Subatomizers dissect the Sub. Optics. 04122_ EXIT=FOUND: RECYCLING 04131_ S-10 Pest destroyed. Map ----- +----------------------------------------------------+ | ???????????????? ??#### ###????????????? | | ????????????????### ????## ####????????????? | | ????????????????### ?????## #####?????????????? | | ????????????????? ????? #######??????????????? | | ?????????????????? ?? #####????????????????? | | ?????????????????? ### ?????????????????????? | | ?????????????????? #### ?????????????????????? | | ????????????????????### ?????????????????????? | | ?????????????????????## ?????????????????????? | | ?????????????????????## ?????????????????????? | | ?????????????????????## ?????????????????????? | | ????????????????????## ??????????????????????? | | ????????????????????## ??? ##??????????????? | | ????????????????????# ?? ##??????????????? | | ???????????????????? ?? ##??????????????? | | ????????????????????? ?? ??? ##??????????????? | | ????????????????????????? ?? ##??????????????? | | ????????????????????????? ? ## ###?????????????? | | ????????????????????????? ? ## ###?????????????? | | ??????????????????????### ?## ##?????????????? | | ?????????????????????#### ### ##?????????????? | | ?????????????????????### #### ##?????????????? | | ?????????????##"????"## ## ##?????????????? | | ?????????????##" ?? ## s ##?????????????? | | ?????????????##" # ss ####?????????????? | | ????????????###""t @%[ ###??????????????? | | ????????????##> ## ##??????????????? | | ????????????###""t ? ## ##??????????????? | | ?????###????###" ????##### ###??????????????? | | ##??#####????##" ??? ######## ###??????????????? | | ###### ##????##"??? "######### ###??????????????? | | #### ????###??#### ####### ##??????????????? | | ### ????????#### ##### ##??????????????? | | #### ?????????### ### ##??????????????? | | #### #?????????## ## ####?????????????? | | ### #######????## ### #####????????????? | | ## #######????######## ###????????????? | | ## ##????######## ##????????????? | | # ##?????????### ###????????????? | | # ######??????## ######????????????? | | # ######?????### #####?????????????? | | ## ###???#### ##??????????????? | | ######### ## ###?????????????? | | ## ####### #### ###?????????????? | | ### ## ## ##### ##?????????????? | | # ### ### ### ##?????????????? | | "#" ### # # ###?????????????? | | #""###### #### ####?????????????? | | ##"#####"" ###### ###??????????????? | | #####""#"# ######## ###??????????????? | +----------------------------------------------------+ Best States ------------- Heat Dissipation 25 Energy Generation 14 Energy Capacity 250 Matter Stores 300 Matter Capacity 300 Sight Range 16 Terrain Scan Density 10 Armor Coverage 150 Resistance: KI 35 Resistance: TH 35 Resistance: EX 35 Resistance: EM 35 Resistance: I 35 Resistance: S 35 Resistance: P 35 Core Shielding 20 Evasion (%) 50 Recoil Reduction 2 Offensive Hacking 20 Item Schematics ----------------- None Robot Schematics ------------------ None Fabricated ------------ Nothing Repaired ---------- Nothing Studied --------- None Alien Tech Used ----------------- None Achievements -------------- None Challenges ------------ None Game ------ Seed BlanketCommCoupler Manual? 0 Play Time 00:22:01 Cumulative 203.2 hours Start 2025.12.16 @ 15:01:21 End 2025.12.16 @ 15:21:31 Sessions 1 Manual Loads 0 Difficulty Explorer Special Mode None Game No. 309 Rogue 0 Adventurer 0 Explorer 309 Win Type - Total 0 Types 0/0/0/0/0/0/0/0/0/0 Lore% 71 Gallery% 67 Achievement% 53 Wizard Run 0 Options --------- Layout 1 ASCII 0 Keyboard 0 Movement Mouse Keybinds 0 Fullscreen 1 Font 24/Smallcaps Map View 50x35 Zoom Use 0% Tactical HUD 1 Map Filters NONE Filters NONE Steam 1 RUN: 611a5627-52e1-49fc-b0fe-54f16100ba1b